fUST/lending_fUST_20250722
["ID","MTS","AMOUNT","RATE_DAILY","PERIOD"]
[373986533,1753170334204,460.0,0.00016701,2]
[373986534,1753170334888,460.0,0.00016701,2]
[373986535,1753170335459,460.0,0.00016701,2]
[373986536,1753170336082,460.0,0.00016701,2]
[373986537,1753170339270,460.0,0.00016701,2]
[373986538,1753170343303,460.0,0.00016701,2]
[373986539,1753170343335,460.0,0.00016701,2]
[373986540,1753170348953,224.77492426,0.00016701,2]
[373986541,1753170351967,460.0,0.00016701,2]
[373986543,1753170353271,460.0,0.00016701,2]
[373986544,1753170353750,460.0,0.00016701,2]
[373986545,1753170356722,460.0,0.00016701,2]
[373986547,1753170362940,300.0,0.00016701,2]
[373986549,1753170366038,460.0,0.00016701,2]
[373986552,1753170371447,460.0,0.00016701,2]
[373986553,1753170373020,460.0,0.00016701,2]
[373986555,1753170379112,466.73409255,0.00016701,2]
[373986558,1753170380622,460.0,0.00016701,2]
[373986559,1753170380801,460.0,0.00016701,2]
[373986562,1753170387680,460.0,0.00016701,2]
[373986563,1753170390039,460.0,0.00016701,2]
[373986564,1753170392619,460.0,0.00016701,2]
[373986565,1753170396400,460.0,0.00016701,2]
[373986566,1753170397887,460.0,0.00016701,2]
[373986567,1753170399714,460.0,0.00016701,2]
[373986568,1753170401907,460.0,0.00016701,2]
[373986569,1753170405941,1246.27,0.00016701,2]
[373986570,1753170413019,456.23242132,0.00016701,2]
[373986571,1753170421015,460.0,0.00016701,2]
[373986572,1753170422639,460.0,0.00016701,2]
[373986573,1753170423013,300.0,0.00016701,2]
[373986574,1753170423214,460.0,0.00016701,2]
[373986575,1753170424352,462.86513776,0.00016701,2]
[373986576,1753170426855,215.57573188,0.00016701,2]
[373986577,1753170427007,460.0,0.00016701,2]
[373986578,1753170428435,460.0,0.00016701,2]
[373986579,1753170431456,600.0,0.00016701,2]
[373986580,1753170431960,460.0,0.00016701,2]
[373986581,1753170438651,460.0,0.00016701,2]
[373986582,1753170442661,460.0,0.00016701,2]
[373986583,1753170443612,460.0,0.00016701,2]
[373986584,1753170444337,460.0,0.00016701,2]
[373986585,1753170444951,460.0,0.00016701,2]
[373986586,1753170453165,161.408051,0.00013699,2]
[373986588,1753170458936,460.0,0.00016701,2]
[373986589,1753170467254,902.59,0.00016701,2]
[373986590,1753170471411,460.0,0.00016701,2]
[373986591,1753170471987,460.0,0.00016701,2]
[373986593,1753170482056,460.0,0.00016701,2]
[373986594,1753170486408,460.0,0.00016701,2]
[373986595,1753170488577,460.0,0.00016701,2]
[373986596,1753170496514,460.0,0.00016701,2]
[373986597,1753170497802,460.0,0.00016701,2]
[373986598,1753170500359,490.92434587,0.00016701,2]
[373986599,1753170508234,460.0,0.00016701,2]
[373986600,1753170510048,460.0,0.00016701,2]
[373986601,1753170510810,462.97887029,0.00016701,2]
[373986602,1753170510853,158.86698232,0.00016603,2]
[373986603,1753170512445,460.0,0.00016701,2]
[373986604,1753170512673,460.0,0.00016701,2]
[373986605,1753170514511,460.0,0.00016701,2]
[373986606,1753170517160,460.0,0.00016701,2]
[373986607,1753170517263,460.0,0.00016701,2]
[373986608,1753170518862,460.0,0.00016701,2]
[373986609,1753170528984,460.0,0.00016701,2]
[373986610,1753170530121,460.0,0.00016701,2]
[373986611,1753170530296,460.0,0.00016701,2]
[373986612,1753170532862,460.0,0.00016701,2]
[373986613,1753170536447,460.0,0.00016701,2]
[373986614,1753170537637,460.0,0.00016701,2]
[373986615,1753170539411,460.0,0.00016701,2]
[373986616,1753170541393,539.76874231,0.00016701,2]
[373986617,1753170542814,460.0,0.00016701,2]
[373986621,1753170548025,460.0,0.00016701,2]
[373986623,1753170552272,460.0,0.00016701,2]
[373986624,1753170552451,487.4,0.00016701,2]
[373986625,1753170558172,460.0,0.00016701,2]
[373986626,1753170558365,460.0,0.00016701,2]
[373986627,1753170561102,460.0,0.00016701,2]
[373986628,1753170561657,663.07,0.00016701,2]
[373986629,1753170562581,460.0,0.00016701,2]
[373986630,1753170563770,460.0,0.00016701,2]
[373986631,1753170565379,503.03923959,0.00016701,2]
[373986632,1753170566174,153.32178343,0.00016701,2]
[373986639,1753170568237,460.0,0.00016701,2]
[373986643,1753170569176,460.0,0.00016701,2]
[373986644,1753170571124,2275.74,0.00016701,2]
[373986645,1753170571982,460.0,0.00016701,2]
[373986646,1753170572440,245.85112974,0.00016701,2]
[373986647,1753170574058,460.0,0.00016701,2]
[373986648,1753170574784,2180.92,0.00016701,2]
[373986649,1753170575451,465.48622563,0.00016701,2]
[373986650,1753170581350,460.0,0.00016701,2]
[373986651,1753170584673,334.15614441,0.00016701,2]
[373986652,1753170590596,460.0,0.00016701,2]
[373986653,1753170592838,2090.05,0.00016701,2]
[373986654,1753170595290,460.0,0.00016701,2]
[373986655,1753170602266,300.0,0.00016701,2]
[373986656,1753170605100,460.0,0.00016701,2]
[373986657,1753170608574,460.0,0.00016701,2]
[373986658,1753170610981,460.0,0.00016701,2]
[373986659,1753170614986,465.49053133,0.00016701,2]
[373986660,1753170618965,460.0,0.00016701,2]
[373986661,1753170623276,460.0,0.00016701,2]
[373986662,1753170625270,460.0,0.00016701,2]
[373986663,1753170627506,2002.97,0.00016701,2]
[373986664,1753170628599,460.0,0.00016701,2]
[373986665,1753170630343,460.0,0.00016701,2]
[373986666,1753170630562,460.0,0.00016701,2]
[373986714,1753170632039,-4764.45171987,0.00016702,2]
[373986716,1753170632049,-355.30195347,0.00016702,2]
[373986718,1753170632061,-104.69804653,0.00016702,2]
[373986720,1753170632071,-460.0,0.00016702,2]
[373986722,1753170632080,-460.0,0.00016702,2]
[373986724,1753170632090,-460.0,0.00016702,2]
[373986726,1753170632100,-460.0,0.00016702,2]
[373986728,1753170632109,-394.87046588,0.00016702,2]
[373986731,1753170632122,-65.12953412,0.00016702,2]
[373986735,1753170632132,-461.27915219,0.00016702,2]
[373986737,1753170632142,-460.0,0.00016702,2]
[373986740,1753170632151,-460.0,0.00016702,2]
[373986744,1753170632163,-460.0,0.00016702,2]
[373986747,1753170632173,-460.0,0.00016702,2]
[373986750,1753170632182,-462.39473424,0.00016702,2]
[373986752,1753170632191,-461.04734821,0.00016702,2]
[373986755,1753170632200,-461.28036586,0.00016702,2]
[373986759,1753170632210,-460.0,0.00016702,2]
[373986762,1753170632220,-460.0,0.00016702,2]
[373986765,1753170632229,-460.77353787,0.00016702,2]
[373986767,1753170632240,-460.0,0.00016702,2]
[373986771,1753170632251,-503.89607381,0.00016702,2]
[373986774,1753170632261,-460.0,0.00016702,2]
[373986777,1753170632270,-503.84,0.00016702,2]
[373986780,1753170632279,-460.0,0.00016702,2]
[373986783,1753170632288,-460.0,0.00016702,2]
[373986786,1753170632298,-460.0,0.00016702,2]
[373986789,1753170632307,-460.0,0.00016702,2]
[373986792,1753170632317,-460.0,0.00016702,2]
[373986794,1753170632326,-608.14,0.00016702,2]
[373986796,1753170632335,-713.71,0.00016702,2]
[373986800,1753170632344,-460.0,0.00016703,2]
[373986802,1753170632354,-460.0,0.00016703,2]
[373986805,1753170632363,-189.31422049,0.00016703,2]
[373986808,1753170632372,-460.0,0.00016703,2]
[373986811,1753170632381,-460.0,0.00016703,2]
[373986813,1753170632392,-460.0,0.00016703,2]
[373986815,1753170632401,-460.0,0.00016703,2]
[373986817,1753170632410,-460.0,0.00016703,2]
[373986819,1753170632419,-460.0,0.00016703,2]
[373986821,1753170632428,-460.0,0.00016703,2]
[373986823,1753170632438,-472.44978497,0.00016703,2]
[373986825,1753170632448,-602.0158572,0.00016703,2]
[373986827,1753170632457,-460.0,0.00016703,2]
[373986829,1753170632466,-460.0,0.00016703,2]
[373986831,1753170632476,-460.0,0.00016703,2]
[373986833,1753170632485,-452.86649527,0.00016703,2]
[373986835,1753170632495,-460.0,0.00016703,2]
[373986837,1753170632505,-460.0,0.00016703,2]
[373986839,1753170632514,-460.0,0.00016703,2]
[373986841,1753170632523,-460.0,0.00016703,2]
[373986843,1753170632533,-466.62006278,0.00016703,2]
[373986845,1753170632542,-473.8932571,0.00016703,2]
[373986847,1753170632551,-460.0,0.00016703,2]
[373986849,1753170632560,-460.0,0.00016703,2]
[373986851,1753170632571,-460.0,0.00016703,2]
[373986853,1753170632580,-460.0,0.00016703,2]
[373986855,1753170632589,-279.8693798,0.00016703,2]
[373986857,1753170632599,-460.0,0.00016703,2]
[373986859,1753170632608,-460.0,0.00016703,2]
[373986861,1753170632618,-460.0,0.00016703,2]
[373986863,1753170632628,-460.0,0.00016703,2]
[373986865,1753170632637,-460.0,0.00016703,2]
[373986867,1753170632646,-460.0,0.00016703,2]
[373986869,1753170632655,-460.0,0.00016703,2]
[373986871,1753170632665,-460.0,0.00016703,2]
[373986873,1753170632674,-460.0,0.00016703,2]
[373986875,1753170632683,-460.0,0.00016703,2]
[373986877,1753170632693,-460.0,0.00016703,2]
[373986879,1753170632702,-460.0,0.00016703,2]
[373986881,1753170632711,-460.0,0.00016703,2]
[373986883,1753170632721,-460.0,0.00016703,2]
[373986885,1753170632730,-460.0,0.00016703,2]
[373986887,1753170632739,-460.0,0.00016703,2]
[373986889,1753170632751,-500.0,0.00016703,2]
[373986891,1753170632760,-460.0,0.00016703,2]
[373986893,1753170632769,-460.0,0.00016703,2]
[373986895,1753170632779,-296.97856252,0.00016703,2]
[373986897,1753170632788,-460.0,0.00016703,2]
[373986899,1753170632797,-460.0,0.00016703,2]
[373986901,1753170632807,-460.0,0.00016703,2]
[373986903,1753170632816,-460.0,0.00016703,2]
[373986905,1753170632825,-460.0,0.00016703,2]
[373986906,1753170632834,-460.0,0.00016703,2]
[373986908,1753170632843,-460.0,0.00016703,2]
[373986910,1753170632852,-460.0,0.00016703,2]
[373986912,1753170632861,-460.0,0.00016703,2]
[373986913,1753170632870,-460.0,0.00016703,2]
[373986915,1753170632880,-460.0,0.00016703,2]
[373986917,1753170632889,-460.0,0.00016703,2]
[373986919,1753170632899,-460.0,0.00016703,2]
[373986921,1753170632908,-460.0,0.00016703,2]
[373986923,1753170632918,-460.0,0.00016703,2]
[373986925,1753170632927,-460.0,0.00016703,2]
[373986927,1753170632937,-460.0,0.00016703,2]
[373986929,1753170632947,-1358.37,0.00016703,2]
[373986931,1753170632956,-593.33,0.00016704,2]
[373986933,1753170632965,-406.57034125,0.00016875,2]
[373986935,1753170632975,-460.0,0.00016973,2]
[373986937,1753170632984,-460.0,0.00016973,2]
[373986939,1753170632995,-460.0,0.00016973,2]
[373986941,1753170633004,-460.0,0.00016973,2]
[373986943,1753170633014,-460.0,0.00016973,2]
[373986944,1753170633025,-460.0,0.00016973,2]
[373986947,1753170633034,-810.48,0.00016973,2]
[373986948,1753170633044,-791.99,0.00016973,2]
[373986951,1753170633055,-567.52,0.00016973,2]
[373986953,1753170633065,-460.0,0.00016973,2]
[373986955,1753170633074,-460.0,0.00016973,2]
[373986956,1753170633084,-460.0,0.00016973,2]
[373986958,1753170633095,-460.0,0.00016973,2]
[373986960,1753170633104,-1376.41,0.00016973,2]
[373986962,1753170633114,-460.0,0.00016975,2]
[373986964,1753170633123,-460.0,0.00016975,2]
[373986966,1753170633133,-460.0,0.00016975,2]
[373986968,1753170633142,-364.44,0.00016975,2]
[373986970,1753170633153,-460.0,0.00016975,2]
[373986972,1753170633165,-460.0,0.00016975,2]
[373986974,1753170633175,-460.0,0.00016975,2]
[373986976,1753170633184,-460.0,0.00016975,2]
[373986978,1753170633193,-788.65,0.00016975,2]
[373986980,1753170633203,-460.0,0.00016975,2]
[373986982,1753170633215,-460.0,0.00016975,2]
[373986984,1753170633225,-329.1904351,0.00016975,2]
[373986986,1753170633236,-460.0,0.00016975,2]
[373986988,1753170633245,-460.0,0.00016975,2]
[373986990,1753170633255,-460.0,0.00016975,2]
[373986992,1753170633265,-460.0,0.00016975,2]
[373986994,1753170633274,-578.16046026,0.00016975,2]
[373986996,1753170633283,-460.0,0.00016975,2]
[373986998,1753170633293,-570.06412164,0.00016975,2]
[373987000,1753170633302,-460.0,0.00016975,2]
[373987002,1753170633311,-460.0,0.00016975,2]
[373987004,1753170633321,-460.0,0.00016975,2]
[373987006,1753170633331,-549.59061715,0.00016975,2]
[373987008,1753170633340,-460.0,0.00016975,2]
[373987010,1753170633350,-460.0,0.00016975,2]
[373987012,1753170633360,-301.39664989,0.00016975,2]
[373987015,1753170633373,-158.60335011,0.00016975,2]
[373987017,1753170633383,-363.72054165,0.00016975,2]
[373987019,1753170633394,-96.27945835,0.00016975,2]
[373987021,1753170633403,-460.0,0.00016975,2]
[373987023,1753170633413,-238.87554165,0.00016975,2]
[373987025,1753170633424,-221.12445835,0.00016975,2]
[373987027,1753170633434,-250.86541694,0.00016975,2]
[373987037,1753170633521,-209.13458306,0.00016975,2]
[373987039,1753170633531,-460.0,0.00016975,2]
[373987041,1753170633541,-1246.27,0.00016975,2]
[373987043,1753170633550,-460.0,0.00016975,2]
[373987045,1753170633560,-460.0,0.00016975,2]
[373987047,1753170633570,-902.59,0.00016975,2]
[373987049,1753170633579,-494.24396985,0.00016975,2]
[373987051,1753170633588,-460.0,0.00016975,2]
[373987053,1753170633598,-460.0,0.00016975,2]
[373987055,1753170633607,-460.0,0.00016975,2]
[373987057,1753170633618,-209.83509399,0.00016975,2]
[373987059,1753170633627,-500.0,0.00016975,2]
[373987061,1753170633638,-500.0,0.00016975,2]
[373987063,1753170633648,-500.0,0.00016975,2]
[373987065,1753170633657,-500.0,0.00016975,2]
[373987067,1753170633667,-606.32108158,0.00016975,2]
[373987069,1753170633676,-460.0,0.00016975,2]
[373987071,1753170633685,-460.0,0.00016975,2]
[373987073,1753170633694,-460.0,0.00016975,2]
[373987075,1753170633704,-460.0,0.00016975,2]
[373987077,1753170633713,-358.93024868,0.00016975,2]
[373987201,1753170636287,460.0,0.00016701,2]
[373987203,1753170637502,460.0,0.00016701,2]
[373987237,1753170638032,-460.0,0.00016704,2]
[373987240,1753170638043,-101.06975132,0.00016975,2]
[373987242,1753170638052,-460.0,0.00016975,2]
[373987244,1753170638062,-460.0,0.00016975,2]
[373987246,1753170638072,-460.0,0.00016975,2]
[373987248,1753170638081,-460.0,0.00016975,2]
[373987250,1753170638091,-460.0,0.00016975,2]
[373987252,1753170638100,-487.4,0.00016975,2]
[373987254,1753170638110,-460.0,0.00016975,2]
[373987256,1753170638120,-663.07,0.00016975,2]
[373987258,1753170638129,-460.0,0.00016975,2]
[373987260,1753170638139,-460.0,0.00016975,2]
[373987262,1753170638148,-169.05541874,0.00016975,2]
[373987264,1753170638158,-460.0,0.00016975,2]
[373987266,1753170638170,-460.0,0.00016975,2]
[373987268,1753170638179,-460.0,0.00016975,2]
[373987270,1753170638189,-460.0,0.00016975,2]
[373987272,1753170638198,-460.0,0.00016975,2]
[373987274,1753170638207,-460.0,0.00016975,2]
[373987276,1753170638217,-337.93848047,0.00016975,2]
[373987278,1753170638227,-460.0,0.00016975,2]
[373987280,1753170638237,-460.0,0.00016975,2]
[373987282,1753170638249,-2002.97,0.00016975,2]
[373987284,1753170638258,-460.0,0.00016975,2]
[373987286,1753170638267,-328.87942576,0.00016975,2]
[373987288,1753170638277,-460.0,0.00016975,2]
[373987291,1753170638286,-460.0,0.00016976,2]
[373987292,1753170638295,-460.0,0.00016976,2]
[373987306,1753170638409,-530.14322008,0.00016976,2]
[373987308,1753170638421,-503.84,0.00016976,2]
[373987310,1753170638431,-460.0,0.00016976,2]
[373987312,1753170638440,-460.0,0.00016976,2]
[373987314,1753170638449,-168.59,0.00016976,2]
[373987316,1753170638459,-129.89503054,0.00016976,2]
[373987319,1753170638471,-330.10496946,0.00016976,2]
[373987320,1753170638480,-608.14,0.00016976,2]
[373987323,1753170638490,-713.71,0.00016976,2]
[373987325,1753170638500,-395.19398574,0.00016977,2]
[373987327,1753170638510,-460.0,0.00016977,2]
[373987329,1753170638520,-460.0,0.00016977,2]
[373987331,1753170638530,-466.56276797,0.00016977,2]
[373987333,1753170638539,-460.0,0.00016977,2]
[373987335,1753170638548,-460.0,0.00016977,2]
[373987337,1753170638558,-460.0,0.00016977,2]
[373987339,1753170638567,-460.0,0.00016977,2]
[373987341,1753170638577,-460.0,0.00016977,2]
[373987342,1753170638587,-357.00621842,0.00016977,2]
[373987345,1753170638607,-102.99378158,0.00016977,2]
[373987347,1753170638616,-460.0,0.00016977,2]
[373987348,1753170638626,-460.0,0.00016977,2]
[373987349,1753170638635,-460.0,0.00016977,2]
[373987350,1753170638644,-460.0,0.00016977,2]
[373987351,1753170638654,-460.0,0.00016977,2]
[373987352,1753170638663,-460.0,0.00016977,2]
[373987353,1753170638673,-460.0,0.00016977,2]
[373987354,1753170638683,-460.0,0.00016977,2]
[373987355,1753170638692,-460.0,0.00016977,2]
[373987356,1753170638702,-460.0,0.00016977,2]
[373987357,1753170638712,-460.0,0.00016977,2]
[373987358,1753170638722,-460.0,0.00016977,2]
[373987359,1753170638731,-460.0,0.00016977,2]
[373987360,1753170638741,-460.0,0.00016977,2]
[373987361,1753170638752,-460.0,0.00016977,2]
[373987362,1753170638761,-298.01794482,0.00016977,2]
[373987363,1753170638770,-460.0,0.00016977,2]
[373987364,1753170638779,-460.0,0.00016977,2]
[373987365,1753170638789,-460.0,0.00016977,2]
[373987366,1753170638799,-460.0,0.00016977,2]
[373987367,1753170638808,-460.0,0.00016977,2]
[373987368,1753170638817,-460.0,0.00016977,2]
[373987369,1753170638826,-460.0,0.00016977,2]
[373987370,1753170638835,-1358.37,0.00016977,2]
[373987371,1753170638844,-418.98,0.00016978,2]
[373987372,1753170638854,-593.33,0.00016978,2]
[373987373,1753170638864,-460.0,0.00016978,2]
[373987374,1753170638874,-280.06,0.00017239,3]
[373987375,1753170638883,-340.08,0.0001724,3]
[373987376,1753170638892,-170.04,0.0001724,3]
[373987377,1753170638901,-510.12,0.0001724,3]
[373987378,1753170638910,-354.04528175,0.00017247,2]
[373987379,1753170638919,-460.0,0.00017247,2]
[373987380,1753170638929,-810.48,0.00017247,2]
[373987381,1753170638939,-791.99,0.00017247,2]
[373987382,1753170638948,-460.0,0.00017247,2]
[373987383,1753170638958,-460.0,0.00017247,2]
[373987384,1753170638968,-1376.41,0.00017247,2]
[373987385,1753170638977,-460.0,0.00017249,2]
[373987386,1753170638987,-460.0,0.00017249,2]
[373987387,1753170639000,-460.0,0.00017249,2]
[373987388,1753170639009,-460.0,0.00017249,2]
[373987389,1753170639019,-788.65,0.00017249,2]
[373987390,1753170639028,-460.0,0.00017249,2]
[373987391,1753170639038,-262.90017451,0.00017249,2]
[373987392,1753170639047,-460.0,0.00017249,2]
[373987393,1753170639057,-460.0,0.00017249,2]
[373987394,1753170639067,-460.0,0.00017249,2]
[373987395,1753170639076,-460.0,0.00017249,2]
[373987396,1753170639085,-460.0,0.00017249,2]
[373987397,1753170639095,-460.0,0.00017249,2]
[373987398,1753170639103,-460.0,0.00017249,2]
[373987399,1753170639113,-460.0,0.00017249,2]
[373987400,1753170639122,-460.0,0.00017249,2]
[373987401,1753170639132,-460.0,0.00017249,2]
[373987402,1753170639141,-1246.27,0.00017249,2]
[373987403,1753170639151,-460.0,0.00017249,2]
[373987404,1753170639163,-902.59,0.00017249,2]
[373987405,1753170639173,-460.0,0.00017249,2]
[373987406,1753170639183,-173.99,0.00017249,2]
[373987407,1753170639192,-460.0,0.00017249,2]
[373987408,1753170639203,-460.0,0.00017249,2]
[373987409,1753170639213,-460.0,0.00017249,2]
[373987410,1753170639224,-460.0,0.00017249,2]
[373987411,1753170639234,-460.0,0.00017249,2]
[373987412,1753170639247,-487.4,0.00017249,2]
[373987413,1753170639258,-460.0,0.00017249,2]
[373987414,1753170639267,-663.07,0.00017249,2]
[373987415,1753170639276,-342.7864066,0.00017249,2]
[373987416,1753170639286,-460.0,0.00017249,2]
[373987417,1753170639295,-460.0,0.00017249,2]
[373987418,1753170639305,-460.0,0.00017249,2]
[373987419,1753170639314,-460.0,0.00017249,2]
[373987420,1753170639323,-460.0,0.00017249,2]
[373987421,1753170639333,-460.0,0.00017249,2]
[373987422,1753170639342,-2002.97,0.00017249,2]
[373987423,1753170639351,-460.0,0.00017249,2]
[373987424,1753170639361,-460.0,0.00017249,2]
[373987425,1753170639371,-460.0,0.0001725,2]
[373987426,1753170639379,-460.0,0.0001725,2]
[373987427,1753170639389,-503.84,0.0001725,2]
[373987428,1753170639399,-460.0,0.0001725,2]
[373987429,1753170639408,-460.0,0.0001725,2]
[373987430,1753170639417,-608.14,0.0001725,2]
[373987431,1753170639427,-713.71,0.0001725,2]
[373987432,1753170639436,-214.27376546,0.00017251,2]
[373987433,1753170639445,-460.0,0.00017251,2]
[373987434,1753170639454,-460.66391108,0.00017251,2]
[373987435,1753170639463,-460.0,0.00017251,2]
[373987436,1753170639473,-460.0,0.00017251,2]
[373987437,1753170639482,-460.0,0.00017251,2]
[373987438,1753170639491,-460.0,0.00017251,2]
[373987439,1753170639502,-460.0,0.00017251,2]
[373987440,1753170639511,-460.0,0.00017251,2]
[373987441,1753170639521,-460.0,0.00017251,2]
[373987442,1753170639530,-460.0,0.00017251,2]
[373987443,1753170639539,-460.0,0.00017251,2]
[373987444,1753170639549,-460.0,0.00017251,2]
[373987445,1753170639558,-460.0,0.00017251,2]
[373987446,1753170639567,-460.0,0.00017251,2]
[373987447,1753170639577,-460.0,0.00017251,2]
[373987448,1753170639587,-283.02,0.00017251,2]
[373987449,1753170639596,-460.0,0.00017251,2]
[373987450,1753170639606,-460.0,0.00017251,2]
[373987451,1753170639616,-1358.37,0.00017251,2]
[373987454,1753170639626,-593.33,0.00017252,2]
[373987456,1753170639636,-241.74,0.00017252,2]
[373987457,1753170639646,-810.48,0.00017521,2]
[373987458,1753170639655,-791.99,0.00017521,2]
[373987459,1753170639665,-460.0,0.00017521,2]
[373987460,1753170639675,-460.0,0.00017521,2]
[373987461,1753170639684,-1376.41,0.00017521,2]
[373987462,1753170639694,-460.0,0.00017523,2]
[373987463,1753170639704,-460.0,0.00017523,2]
[373987464,1753170639713,-460.0,0.00017523,2]
[373987465,1753170639722,-788.65,0.00017523,2]
[373987466,1753170639732,-460.0,0.00017523,2]
[373987467,1753170639742,-460.0,0.00017523,2]
[373987468,1753170639755,-460.0,0.00017523,2]
[373987470,1753170639765,-323.21040052,0.00017523,2]
[373987472,1753170639774,-460.0,0.00017523,2]
[373987474,1753170639784,-317.6,0.00017523,2]
[373987476,1753170639795,-460.0,0.00017523,2]
[373987478,1753170639808,-460.0,0.00017523,2]
[373987481,1753170639821,-460.0,0.00017523,2]
[373987483,1753170639833,-460.0,0.00017523,2]
[373987485,1753170639845,-1246.27,0.00017523,2]
[373987486,1753170639858,-460.0,0.00017523,2]
[373987487,1753170639869,-902.59,0.00017523,2]
[373987488,1753170639879,-460.0,0.00017523,2]
[373987489,1753170639890,-218.62,0.00017523,2]
[373987490,1753170639902,-460.0,0.00017523,2]
[373987491,1753170639914,-460.0,0.00017523,2]
[373987492,1753170639925,-487.4,0.00017523,2]
[373987493,1753170639936,-663.07,0.00017523,2]
[373987494,1753170639948,-460.0,0.00017523,2]
[373987495,1753170639959,-460.0,0.00017523,2]
[373987496,1753170639971,-460.0,0.00017523,2]
[373987497,1753170639982,-2002.97,0.00017523,2]
[373987498,1753170639994,-460.0,0.00017523,2]
[373987499,1753170640009,-460.0,0.00017524,2]
[373987500,1753170640022,-503.84,0.00017524,2]
[373987501,1753170640035,-460.0,0.00017524,2]
[373987502,1753170640046,-460.0,0.00017524,2]
[373987503,1753170640057,-608.14,0.00017524,2]
[373987504,1753170640069,-713.71,0.00017524,2]
[373987506,1753170640081,-471.69774941,0.00017525,2]
[373987509,1753170640092,-460.0,0.00017525,2]
[373987510,1753170640104,-460.0,0.00017525,2]
[373987511,1753170640115,-460.0,0.00017525,2]
[373987512,1753170640127,-460.0,0.00017525,2]
[373987514,1753170640139,-460.0,0.00017525,2]
[373987517,1753170640151,-460.0,0.00017525,2]
[373987520,1753170640165,-460.0,0.00017525,2]
[373987523,1753170640176,-460.0,0.00017525,2]
[373987526,1753170640187,-1358.37,0.00017525,2]
[373987528,1753170640199,-593.33,0.00017526,2]
[373987530,1753170640210,-350.74554853,0.00017687,2]
[373987532,1753170640221,-500.0,0.00017687,2]
[373987534,1753170640233,-500.0,0.00017687,2]
[373987536,1753170640244,-249.31997612,0.00017699,2]
[373987539,1753170640258,-810.48,0.00017795,2]
[373987541,1753170640270,-791.99,0.00017795,2]
[373987543,1753170640281,-460.0,0.00017795,2]
[373987545,1753170640295,-1376.41,0.00017795,2]
[373987548,1753170640307,-1828.87,0.00017797,2]
[373987550,1753170640327,-298.7,0.00017797,2]
[373987552,1753170640339,-788.65,0.00017797,2]
[373987555,1753170640351,-189.53177803,0.00017797,2]
[373987557,1753170640363,-460.0,0.00017797,2]
[373987559,1753170640375,-460.0,0.00017797,2]
[373987561,1753170640387,-427.20373491,0.00017797,2]
[373987562,1753170640399,-460.0,0.00017797,2]
[373987563,1753170640410,-460.0,0.00017797,2]
[373987564,1753170640420,-1246.27,0.00017797,2]